[Event "Estonian Chess Championship 2022"]
[Site "Tallinn, Paul Keres Chess House, Estonia"]
[Date "2022.12.11"]
[Round "2.3"]
[White "Timoshin, Andrei"]
[Black "Rychagov, Nikita"]
[Result "1-0"]
[TimeControl "90 minutes for first 40 moves and 15 min. for the rest of the game with 30 sec. increment from move 1"]
[WhiteFideId "4503503"]
[BlackFideId "4508394"]
[WhiteElo "2179"]
[BlackElo "2180"]

1. Nf3 {

[%clk 01:28:54]

} {

[%emt 00:02:05]

} d5 {

[%clk 01:30:52]

} {

[%emt 00:00:08]

} 2. g3 {

[%clk 01:27:54]

} {

[%emt 00:01:31]

} Nd7 {

[%clk 01:29:58]

} {

[%emt 00:01:24]

} 3. d4 {

[%clk 01:27:05]

} {

[%emt 00:01:19]

} Nb6 {

[%clk 01:29:55]

} {

[%emt 00:00:33]

} 4. Bg2 {

[%clk 01:26:02]

} {

[%emt 00:01:32]

} Bf5 {

[%clk 01:29:14]

} {

[%emt 00:01:12]

} 5. O-O {

[%clk 01:25:14]

} {

[%emt 00:01:17]

} e6 {

[%clk 01:28:49]

} {

[%emt 00:00:56]

} 6. b3 {

[%clk 01:11:28]

} {

[%emt 00:14:16]

} Nf6 {

[%clk 01:27:47]

} {

[%emt 00:01:31]

} 7. Nbd2 {

[%clk 01:11:47]

} {

[%emt 00:00:11]

} h6 {

[%clk 01:27:56]

} {

[%emt 00:00:21]

} 8. a4 {

[%clk 01:10:00]

} {

[%emt 00:02:18]

} a5 {

[%clk 01:28:05]

} {

[%emt 00:00:21]

} 9. c4 {

[%clk 01:04:42]

} {

[%emt 00:05:48]

} c6 {

[%clk 01:28:04]

} {

[%emt 00:00:31]

} 10. Re1 {

[%clk 01:01:22]

} {

[%emt 00:03:50]

} Bb4 {

[%clk 01:21:26]

} {

[%emt 00:07:08]

} 11. Ba3 {

[%clk 00:53:06]

} {

[%emt 00:08:45]

} Bxa3 {

[%clk 01:20:25]

} {

[%emt 00:01:32]

} 12. Rxa3 {

[%clk 00:53:35]

} {

[%emt 00:00:01]

} O-O {

[%clk 01:19:43]

} {

[%emt 00:01:11]

} 13. Ra2 {

[%clk 00:37:49]

} {

[%emt 00:16:16]

} Ne4 {

[%clk 01:09:17]

} {

[%emt 00:10:56]

} 14. Qa1 {

[%clk 00:37:10]

} {

[%emt 00:01:09]

} Nd7 {

[%clk 01:02:10]

} {

[%emt 00:07:37]

} 15. Nxe4 {

[%clk 00:30:52]

} {

[%emt 00:06:47]

} Bxe4 {

[%clk 01:02:26]

} {

[%emt 00:00:14]

} 16. Qc3 {

[%clk 00:30:22]

} {

[%emt 00:01:00]

} Qb6 {

[%clk 00:58:43]

} {

[%emt 00:04:13]

} 17. Nd2 {

[%clk 00:19:23]

} {

[%emt 00:11:28]

} Bxg2 {

[%clk 00:58:56]

} {

[%emt 00:00:17]

} 18. Kxg2 {

[%clk 00:19:50]

} {

[%emt 00:00:02]

} c5 {

[%clk 00:55:36]

} {

[%emt 00:03:51]

} 19. cxd5 {

[%clk 00:16:44]

} {

[%emt 00:03:36]

} cxd4 {

[%clk 00:54:42]

} {

[%emt 00:01:25]

} 20. Qf3 {

[%clk 00:17:12]

} {

[%emt 00:00:01]

} e5 {

[%clk 00:48:49]

} {

[%emt 00:06:23]

} 21. e3 {

[%clk 00:15:59]

} {

[%emt 00:01:43]

} Rac8 {

[%clk 00:46:27]

} {

[%emt 00:02:52]

} 22. exd4 {

[%clk 00:14:59]

} {

[%emt 00:01:30]

} exd4 {

[%clk 00:44:55]

} {

[%emt 00:02:03]

} 23. Nc4 {

[%clk 00:07:55]

} {

[%emt 00:07:34]

} Qb4 {

[%clk 00:45:22]

} {

[%emt 00:00:03]

} 24. Rd1 {

[%clk 00:08:03]

} {

[%emt 00:00:20]

} Nc5 {

[%clk 00:44:20]

} {

[%emt 00:01:32]

} 25. Rb2 {

[%clk 00:07:07]

} {

[%emt 00:01:27]

} d3 {

[%clk 00:39:09]

} {

[%emt 00:05:42]

} 26. Rbb1 {

[%clk 00:05:58]

} {

[%emt 00:01:39]

} Rfd8 {

[%clk 00:32:50]

} {

[%emt 00:06:49]

} 27. Ne5 {

[%clk 00:05:40]

} {

[%emt 00:00:47]

} Qe4 {

[%clk 00:32:56]

} {

[%emt 00:00:24]

} 28. Qxe4 {

[%clk 00:04:28]

} {

[%emt 00:01:42]

} Nxe4 {

[%clk 00:33:19]

} {

[%emt 00:00:07]

} 29. Rxd3 {

[%clk 00:04:46]

} {

[%emt 00:00:12]

} Rc2 {

[%clk 00:33:19]

} {

[%emt 00:00:30]

} 30. Rf1 {

[%clk 00:03:00]

} {

[%emt 00:02:15]

} Nc5 {

[%clk 00:30:27]

} {

[%emt 00:03:23]

} 31. Rdd1 {

[%clk 00:03:29]

} {

[%emt 00:00:01]

} Nxb3 {

[%clk 00:29:17]

} {

[%emt 00:01:40]

} 32. Rfe1 {

[%clk 00:02:45]

} {

[%emt 00:01:14]

} Rd6 {

[%clk 00:27:30]

} {

[%emt 00:02:18]

} 33. Ng4 {

[%clk 00:01:35]

} {

[%emt 00:01:39]

} Rc4 {

[%clk 00:20:08]

} {

[%emt 00:07:53]

} 34. Re8+ {

[%clk 00:01:47]

} {

[%emt 00:00:18]

} Kh7 {

[%clk 00:20:36]

} {

[%emt 00:00:02]

} 35. Ne5 {

[%clk 00:01:49]

} {

[%emt 00:00:27]

} Rd4 {

[%clk 00:17:29]

} {

[%emt 00:03:37]

} 36. Rxd4 {

[%clk 00:01:07]

} {

[%emt 00:01:12]

} Nxd4 {

[%clk 00:17:56]

} {

[%emt 00:00:04]

} 37. Rh8+ {

[%clk 00:01:13]

} {

[%emt 00:00:23]

} Kxh8 {

[%clk 00:18:14]

} {

[%emt 00:00:12]

} 38. Nxf7+ {

[%clk 00:01:41]

} {

[%emt 00:00:02]

} Kg8 {

[%clk 00:18:34]

} {

[%emt 00:00:10]

} 39. Nxd6 {

[%clk 00:02:07]

} {

[%emt 00:00:04]

} b6 {

[%clk 00:18:31]

} {

[%emt 00:00:33]

} 40. Nc4 {

[%clk 00:16:57]

} {

[%emt 00:00:40]

} b5 {

[%clk 00:30:42]

} {

[%emt 00:03:19]

} 41. axb5 {

[%clk 00:14:33]

} {

[%emt 00:02:54]

} Nxb5 {

[%clk 00:31:10]

} {

[%emt 00:00:02]

} 42. Nxa5 {

[%clk 00:14:50]

} {

[%emt 00:00:13]

} Nc3 {

[%clk 00:31:37]

} {

[%emt 00:00:03]

} 43. d6 {

[%clk 00:14:56]

} {

[%emt 00:00:23]

} Kf7 {

[%clk 00:31:56]

} {

[%emt 00:00:12]

} 44. Kf3 {

[%clk 00:12:55]

} {

[%emt 00:02:31]

} Ke6 {

[%clk 00:32:22]

} {

[%emt 00:00:04]

} 45. Nc4 {

[%clk 00:13:14]

} {

[%emt 00:00:10]

} Nd5 {

[%clk 00:31:18]

} {

[%emt 00:01:35]

} 46. Ke4 {

[%clk 00:06:21]

} {

[%emt 00:07:23]

} Nf6+ {

[%clk 00:31:05]

} {

[%emt 00:00:43]

} 47. Kd4 {

[%clk 00:06:01]

} {

[%emt 00:00:50]

} Nd7 {

[%clk 00:31:25]

} {

[%emt 00:00:11]

} 48. f4 {

[%clk 00:04:59]

} {

[%emt 00:01:31]

} h5 {

[%clk 00:30:21]

} {

[%emt 00:01:34]

} 49. h3 {

[%clk 00:04:22]

} {

[%emt 00:01:07]

} Kf5 {

[%clk 00:29:50]

} {

[%emt 00:01:02]

} 50. Ne5 {

[%clk 00:03:45]

} {

[%emt 00:01:07]

} Nf8 {

[%clk 00:29:27]

} {

[%emt 00:00:53]

} 51. d7 {

[%clk 00:03:50]

} {

[%emt 00:00:25]

} Ne6+ {

[%clk 00:29:40]

} {

[%emt 00:00:17]

} 52. Kd5 {

[%clk 00:04:11]

} {

[%emt 00:00:08]

} Nd8 {

[%clk 00:29:51]

} {

[%emt 00:00:19]

} 53. Nc6 {

[%clk 00:02:04]

} {

[%emt 00:02:37]

} Nf7 {

[%clk 00:30:01]

} {

[%emt 00:00:21]

} 54. g4 {

[%clk 00:01:32]

} {

[%emt 00:01:01]

} hxg4 {

[%clk 00:30:18]

} {

[%emt 00:00:14]

} 55. hxg4 {

[%clk 00:01:59]

} {

[%emt 00:00:03]

} Kxf4 {

[%clk 00:28:55]

} {

[%emt 00:01:52]

} 56. Ke6 {

[%clk 00:02:25]

} {

[%emt 00:00:03]

} 1-0

[Event "Estonian Chess Championship 2022"]
[Site "Tallinn, Paul Keres Chess House, Estonia"]
[Date "2022.12.11"]
[Round "2.4"]
[White "Medar, Marti"]
[Black "Seeman, Tarvo"]
[Result "1/2-1/2"]
[TimeControl "90 minutes for first 40 moves and 15 min. for the rest of the game with 30 sec. increment from move 1"]
[BlackTitle "IM"]
[WhiteFideId "4501870"]
[BlackFideId "4500547"]
[WhiteElo "2069"]
[BlackElo "2405"]

1. Nf3 {

[%clk 01:30:52]

} {

[%emt 00:00:06]

} g6 {

[%clk 01:29:58]

} {

[%emt 00:01:02]

} 2. c4 {

[%clk 01:28:37]

} {

[%emt 00:02:44]

} c5 {

[%clk 01:28:20]

} {

[%emt 00:02:08]

} 3. e3 {

[%clk 01:17:19]

} {

[%emt 00:11:49]

} Nf6 {

[%clk 01:23:42]

} {

[%emt 00:05:08]

} 4. b3 {

[%clk 01:12:53]

} {

[%emt 00:04:56]

} Bg7 {

[%clk 01:23:37]

} {

[%emt 00:00:34]

} 5. Bb2 {

[%clk 01:13:07]

} {

[%emt 00:00:15]

} Nc6 {

[%clk 01:19:46]

} {

[%emt 00:04:21]

} 6. Be2 {

[%clk 01:12:11]

} {

[%emt 00:01:26]

} O-O {

[%clk 01:19:05]

} {

[%emt 00:01:11]

} 7. O-O {

[%clk 01:11:55]

} {

[%emt 00:00:46]

} d6 {

[%clk 01:04:36]

} {

[%emt 00:14:59]

} 8. d4 {

[%clk 01:08:20]

} {

[%emt 00:04:05]

} cxd4 {

[%clk 01:04:51]

} {

[%emt 00:00:16]

} 9. Nxd4 {

[%clk 01:08:27]

} {

[%emt 00:00:22]

} Bd7 {

[%clk 01:01:18]

} {

[%emt 00:04:03]

} 10. Nc3 {

[%clk 01:05:45]

} {

[%emt 00:03:12]

} Qa5 {

[%clk 00:57:33]

} {

[%emt 00:04:15]

} 11. Qd2 {

[%clk 01:01:52]

} {

[%emt 00:04:23]

} Rfc8 {

[%clk 00:55:50]

} {

[%emt 00:02:13]

} 12. Rfd1 {

[%clk 00:59:15]

} {

[%emt 00:03:07]

} Rab8 {

[%clk 00:54:01]

} {

[%emt 00:02:18]

} 13. Rac1 {

[%clk 00:47:45]

} {

[%emt 00:12:00]

} a6 {

[%clk 00:51:40]

} {

[%emt 00:02:52]

} 14. a3 {

[%clk 00:40:15]

} {

[%emt 00:08:01]

} Qd8 {

[%clk 00:29:22]

} {

[%emt 00:22:48]

} 15. Nd5 {

[%clk 00:32:53]

} {

[%emt 00:07:51]

} Nxd5 {

[%clk 00:27:04]

} {

[%emt 00:02:48]

} 16. cxd5 {

[%clk 00:32:31]

} {

[%emt 00:00:52]

} Nxd4 {

[%clk 00:26:55]

} {

[%emt 00:00:39]

} 17. Bxd4 {

[%clk 00:32:44]

} {

[%emt 00:00:17]

} Bxd4 {

[%clk 00:26:25]

} {

[%emt 00:01:01]

} 18. Qxd4 {

[%clk 00:32:36]

} {

[%emt 00:00:36]

} Rxc1 {

[%clk 00:25:03]

} {

[%emt 00:01:54]

} 19. Rxc1 {

[%clk 00:32:58]

} {

[%emt 00:00:08]

} Rc8 {

[%clk 00:25:29]

} {

[%emt 00:00:04]

} 20. Rxc8 {

[%clk 00:18:12]

} {

[%emt 00:15:16]

} Qxc8 {

[%clk 00:24:13]

} {

[%emt 00:01:45]

} 21. Qd2 {

[%clk 00:17:38]

} {

[%emt 00:01:03]

} Bb5 {

[%clk 00:12:43]

} {

[%emt 00:12:01]

} 22. Bxb5 {

[%clk 00:03:30]

} {

[%emt 00:14:38]

} axb5 {

[%clk 00:13:08]

} {

[%emt 00:00:05]

} 23. e4 {

[%clk 00:03:11]

} {

[%emt 00:00:49]

} f5 {

[%clk 00:11:47]

} {

[%emt 00:01:51]

} 24. exf5 {

[%clk 00:01:34]

} {

[%emt 00:02:07]

} Qxf5 {

[%clk 00:11:51]

} {

[%emt 00:00:26]

} 25. Qd1 {

[%clk 00:01:41]

} {

[%emt 00:00:24]

} Kf7 {

[%clk 00:07:35]

} {

[%emt 00:04:45]

} 26. h3 {

[%clk 00:02:09]

} {

[%emt 00:00:02]

} h5 {

[%clk 00:06:03]

} {

[%emt 00:02:03]

} 27. b4 {

[%clk 00:01:44]

} {

[%emt 00:00:55]

} h4 {

[%clk 00:03:23]

} {

[%emt 00:03:09]

} 28. Qd4 {

[%clk 00:01:25]

} {

[%emt 00:00:49]

} g5 {

[%clk 00:03:20]

} {

[%emt 00:00:33]

} 29. f3 {

[%clk 00:01:21]

} {

[%emt 00:00:34]

} Qf4 {

[%clk 00:01:04]

} {

[%emt 00:02:46]

} 30. Qd3 {

[%clk 00:01:39]

} {

[%emt 00:00:12]

} Qc1+ {

[%clk 00:01:01]

} {

[%emt 00:00:33]

} 31. Kh2 {

[%clk 00:02:07]

} {

[%emt 00:00:02]

} Qf4+ {

[%clk 00:01:24]

} {

[%emt 00:00:07]

} 32. Kg1 {

[%clk 00:02:36]

} Qc1+ {

[%clk 00:01:19]

} {

[%emt 00:00:36]

} 1/2-1/2

[Event "Estonian Chess Championship 2022"]
[Site "Tallinn, Paul Keres Chess House, Estonia"]
[Date "2022.12.11"]
[Round "2.5"]
[White "Kiik, Kalle"]
[Black "Volodin, Aleksandr"]
[Result "0-1"]
[TimeControl "90 minutes for first 40 moves and 15 min. for the rest of the game with 30 sec. increment from move 1"]
[WhiteTitle "IM"]
[BlackTitle "GM"]
[WhiteFideId "4500075"]
[BlackFideId "4501950"]
[WhiteElo "2369"]
[BlackElo "2440"]

1. d4 {

[%clk 01:30:55]

} {

[%emt 00:00:03]

} Nf6 {

[%clk 01:26:24]

} {

[%emt 00:04:38]

} 2. Nf3 {

[%clk 01:30:28]

} {

[%emt 00:00:56]

} e6 {

[%clk 01:26:41]

} {

[%emt 00:00:14]

} 3. e3 {

[%clk 01:30:32]

} {

[%emt 00:00:24]

} d5 {

[%clk 01:24:12]

} {

[%emt 00:03:00]

} 4. c4 {

[%clk 01:30:17]

} {

[%emt 00:00:44]

} dxc4 {

[%clk 01:23:03]

} {

[%emt 00:01:40]

} 5. Bxc4 {

[%clk 01:30:34]

} {

[%emt 00:00:12]

} a6 {

[%clk 01:23:32]

} {

[%emt 00:00:03]

} 6. O-O {

[%clk 01:25:50]

} {

[%emt 00:05:13]

} Nbd7 {

[%clk 01:23:01]

} {

[%emt 00:01:02]

} 7. a4 {

[%clk 01:23:48]

} {

[%emt 00:02:32]

} b6 {

[%clk 01:23:29]

} {

[%emt 00:00:04]

} 8. Nc3 {

[%clk 01:23:16]

} {

[%emt 00:01:00]

} Bb7 {

[%clk 01:22:51]

} {

[%emt 00:01:09]

} 9. Qe2 {

[%clk 01:20:35]

} {

[%emt 00:03:10]

} Bb4 {

[%clk 01:23:13]

} {

[%emt 00:00:08]

} 10. Rd1 {

[%clk 01:20:10]

} {

[%emt 00:00:55]

} Qe7 {

[%clk 01:18:21]

} {

[%emt 00:05:23]

} 11. Bd3 {

[%clk 01:10:14]

} {

[%emt 00:10:25]

} c5 {

[%clk 01:08:44]

} {

[%emt 00:10:08]

} 12. Na2 {

[%clk 01:03:05]

} {

[%emt 00:07:38]

} Ba5 {

[%clk 01:04:56]

} {

[%emt 00:04:20]

} 13. dxc5 {

[%clk 00:46:22]

} {

[%emt 00:17:12]

} bxc5 {

[%clk 01:04:58]

} {

[%emt 00:00:28]

} 14. e4 {

[%clk 00:46:34]

} {

[%emt 00:00:17]

} O-O {

[%clk 00:53:51]

} {

[%emt 00:11:38]

} 15. Bg5 {

[%clk 00:44:21]

} {

[%emt 00:02:42]

} h6 {

[%clk 00:53:07]

} {

[%emt 00:01:16]

} 16. Bh4 {

[%clk 00:43:55]

} {

[%emt 00:00:55]

} e5 {

[%clk 00:50:56]

} {

[%emt 00:02:42]

} 17. Rac1 {

[%clk 00:42:25]

} {

[%emt 00:01:59]

} Rfe8 {

[%clk 00:43:50]

} {

[%emt 00:07:36]

} 18. Nc3 {

[%clk 00:41:45]

} {

[%emt 00:01:09]

} Nb6 {

[%clk 00:42:23]

} {

[%emt 00:01:58]

} 19. Bb1 {

[%clk 00:35:24]

} {

[%emt 00:06:51]

} Bxc3 {

[%clk 00:39:54]

} {

[%emt 00:03:00]

} 20. Rxc3 {

[%clk 00:33:48]

} {

[%emt 00:02:05]

} Nxa4 {

[%clk 00:40:04]

} {

[%emt 00:00:20]

} 21. Rcd3 {

[%clk 00:22:13]

} {

[%emt 00:12:05]

} Rad8 {

[%clk 00:29:48]

} {

[%emt 00:10:46]

} 22. h3 {

[%clk 00:19:00]

} {

[%emt 00:03:42]

} Rxd3 {

[%clk 00:27:36]

} {

[%emt 00:02:43]

} 23. Bxd3 {

[%clk 00:18:48]

} {

[%emt 00:00:41]

} Rd8 {

[%clk 00:21:55]

} {

[%emt 00:06:11]

} 24. Bxf6 {

[%clk 00:17:59]

} {

[%emt 00:01:18]

} Qxf6 {

[%clk 00:21:35]

} {

[%emt 00:00:52]

} 25. Ra1 {

[%clk 00:17:45]

} {

[%emt 00:00:43]

} c4 {

[%clk 00:18:02]

} {

[%emt 00:04:03]

} 26. Bxc4 {

[%clk 00:15:01]

} {

[%emt 00:03:14]

} Nc5 {

[%clk 00:18:27]

} {

[%emt 00:00:06]

} 27. b4 {

[%clk 00:12:48]

} {

[%emt 00:02:43]

} Nxe4 {

[%clk 00:16:09]

} {

[%emt 00:02:48]

} 28. Bxa6 {

[%clk 00:12:16]

} {

[%emt 00:01:02]

} Ba8 {

[%clk 00:12:46]

} {

[%emt 00:03:53]

} 29. Qe3 {

[%clk 00:08:58]

} {

[%emt 00:03:48]

} Nxf2 {

[%clk 00:07:35]

} {

[%emt 00:05:41]

} 30. Qxf2 {

[%clk 00:05:44]

} {

[%emt 00:03:44]

} e4 {

[%clk 00:08:05]

} 31. Nd4 {

[%clk 00:05:07]

} {

[%emt 00:01:08]

} Qxd4 {

[%clk 00:08:33]

} {

[%emt 00:00:01]

} 32. Qxd4 {

[%clk 00:05:23]

} {

[%emt 00:00:13]

} Rxd4 {

[%clk 00:09:02]

} 33. Be2 {

[%clk 00:04:47]

} {

[%emt 00:01:06]

} Bd5 {

[%clk 00:07:21]

} {

[%emt 00:02:12]

} 34. Rb1 {

[%clk 00:03:01]

} {

[%emt 00:02:16]

} f5 {

[%clk 00:05:01]

} {

[%emt 00:02:50]

} 35. b5 {

[%clk 00:03:26]

} {

[%emt 00:00:05]

} f4 {

[%clk 00:02:56]

} {

[%emt 00:02:35]

} 36. b6 {

[%clk 00:03:17]

} {

[%emt 00:00:39]

} Bb7 {

[%clk 00:03:19]

} {

[%emt 00:00:07]

} 37. h4 {

[%clk 00:02:57]

} {

[%emt 00:00:50]

} Rd6 {

[%clk 00:02:45]

} {

[%emt 00:01:05]

} 38. Rb5 {

[%clk 00:01:34]

} {

[%emt 00:01:53]

} g6 {

[%clk 00:02:15]

} {

[%emt 00:00:59]

} 39. h5 {

[%clk 00:00:52]

} {

[%emt 00:01:12]

} g5 {

[%clk 00:02:23]

} {

[%emt 00:00:22]

} 40. Bg4 {

[%clk 00:16:15]

} {

[%emt 00:00:07]

} Kg7 {

[%clk 00:17:03]

} {

[%emt 00:00:51]

} 41. Kf2 {

[%clk 00:11:20]

} {

[%emt 00:05:25]

} Rd2+ {

[%clk 00:15:21]

} {

[%emt 00:02:12]

} 42. Ke1 {

[%clk 00:09:58]

} {

[%emt 00:01:51]

} Rxg2 {

[%clk 00:14:02]

} {

[%emt 00:01:50]

} 43. Rc5 {

[%clk 00:09:30]

} {

[%emt 00:00:58]

} Rxg4 {

[%clk 00:14:07]

} {

[%emt 00:00:25]

} 44. Rc7+ {

[%clk 00:09:56]

} {

[%emt 00:00:04]

} Kf6 {

[%clk 00:14:26]

} {

[%emt 00:00:11]

} 45. Rxb7 {

[%clk 00:10:21]

} {

[%emt 00:00:05]

} Rg1+ {

[%clk 00:14:49]

} {

[%emt 00:00:07]

} 0-1

[Event "Estonian Chess Championship 2022"]
[Site "Tallinn, Paul Keres Chess House, Estonia"]
[Date "2022.12.12"]
[Round "3.1"]
[White "Volodin, Aleksandr"]
[Black "Kanep, Meelis"]
[Result "1/2-1/2"]
[TimeControl "90 minutes for first 40 moves and 15 min. for the rest of the game with 30 sec. increment from move 1"]
[WhiteTitle "GM"]
[BlackTitle "GM"]
[WhiteFideId "4501950"]
[BlackFideId "4501047"]
[WhiteElo "2440"]
[BlackElo "2412"]

1. d4 {

[%clk 01:23:32]

} {

[%emt 00:07:27]

} Nf6 {

[%clk 01:30:44]

} {

[%emt 00:00:16]

} 2. c4 {

[%clk 01:23:43]

} {

[%emt 00:00:20]

} e6 {

[%clk 01:31:00]

} {

[%emt 00:00:12]

} 3. Nc3 {

[%clk 01:16:50]

} {

[%emt 00:07:24]

} c5 {

[%clk 01:30:13]

} {

[%emt 00:01:17]

} 4. d5 {

[%clk 01:16:52]

} {

[%emt 00:00:28]

} exd5 {

[%clk 01:30:22]

} {

[%emt 00:00:21]

} 5. cxd5 {

[%clk 01:17:15]

} {

[%emt 00:00:07]

} d6 {

[%clk 01:30:32]

} {

[%emt 00:00:20]

} 6. Nf3 {

[%clk 01:16:15]

} {

[%emt 00:01:31]

} g6 {

[%clk 01:30:00]

} {

[%emt 00:01:02]

} 7. Bf4 {

[%clk 01:13:46]

} {

[%emt 00:02:59]

} Bg7 {

[%clk 01:29:13]

} {

[%emt 00:01:17]

} 8. Qa4+ {

[%clk 01:14:09]

} {

[%emt 00:00:08]

} Bd7 {

[%clk 01:29:14]

} {

[%emt 00:00:29]

} 9. Qb3 {

[%clk 01:14:34]

} {

[%emt 00:00:04]

} O-O {

[%clk 01:29:12]

} {

[%emt 00:00:32]

} 10. e3 {

[%clk 01:07:11]

} {

[%emt 00:07:54]

} Qc7 {

[%clk 01:23:23]

} {

[%emt 00:06:19]

} 11. h3 {

[%clk 01:07:33]

} {

[%emt 00:00:07]

} Na6 {

[%clk 01:17:52]

} {

[%emt 00:06:01]

} 12. Nd2 {

[%clk 01:06:00]

} {

[%emt 00:02:02]

} Rab8 {

[%clk 01:07:26]

} {

[%emt 00:10:57]

} 13. a4 {

[%clk 00:45:08]

} {

[%emt 00:21:23]

} Nb4 {

[%clk 01:05:24]

} {

[%emt 00:02:31]

} 14. Be2 {

[%clk 00:45:29]

} {

[%emt 00:00:09]

} a6 {

[%clk 00:52:31]

} {

[%emt 00:13:24]

} 15. Nc4 {

[%clk 00:36:47]

} {

[%emt 00:09:12]

} Ne8 {

[%clk 00:41:51]

} {

[%emt 00:11:10]

} 16. a5 {

[%clk 00:33:26]

} {

[%emt 00:03:51]

} Bf5 {

[%clk 00:32:32]

} {

[%emt 00:09:49]

} 17. O-O {

[%clk 00:28:32]

} {

[%emt 00:05:24]

} Qe7 {

[%clk 00:29:40]

} {

[%emt 00:03:22]

} 18. Rac1 {

[%clk 00:24:39]

} {

[%emt 00:04:22]

} Nd3 {

[%clk 00:27:21]

} {

[%emt 00:02:49]

} 19. Bxd3 {

[%clk 00:23:33]

} {

[%emt 00:01:37]

} Bxd3 {

[%clk 00:27:46]

} {

[%emt 00:00:06]

} 20. Rfd1 {

[%clk 00:23:47]

} {

[%emt 00:00:16]

} Bxc4 {

[%clk 00:27:59]

} {

[%emt 00:00:16]

} 21. Qxc4 {

[%clk 00:24:16]

} {

[%emt 00:00:02]

} b5 {

[%clk 00:28:02]

} {

[%emt 00:00:27]

} 22. axb6 {

[%clk 00:23:15]

} {

[%emt 00:01:31]

} Rxb6 {

[%clk 00:28:26]

} {

[%emt 00:00:06]

} 23. Na4 {

[%clk 00:19:17]

} {

[%emt 00:04:28]

} Rb5 {

[%clk 00:27:17]

} {

[%emt 00:01:39]

} 24. Nc3 {

[%clk 00:13:53]

} {

[%emt 00:05:55]

} Rb6 {

[%clk 00:26:20]

} {

[%emt 00:01:26]

} 1/2-1/2

[Event "Estonian Chess Championship 2022"]
[Site "Tallinn, Paul Keres Chess House, Estonia"]
[Date "2022.12.12"]
[Round "3.2"]
[White "Seeman, Tarvo"]
[Black "Kiik, Kalle"]
[Result "1/2-1/2"]
[TimeControl "90 minutes for first 40 moves and 15 min. for the rest of the game with 30 sec. increment from move 1"]
[WhiteTitle "IM"]
[BlackTitle "IM"]
[WhiteFideId "4500547"]
[BlackFideId "4500075"]
[WhiteElo "2405"]
[BlackElo "2369"]

1. e4 {

[%clk 01:30:12]

} {

[%emt 00:00:46]

} e5 {

[%clk 01:30:52]

} {

[%emt 00:00:08]

} 2. Nf3 {

[%clk 01:30:39]

} {

[%emt 00:00:05]

} Nc6 {

[%clk 01:31:11]

} {

[%emt 00:00:10]

} 3. Nc3 {

[%clk 01:31:02]

} {

[%emt 00:00:07]

} Nf6 {

[%clk 01:31:32]

} {

[%emt 00:00:08]

} 4. d4 {

[%clk 01:31:27]

} {

[%emt 00:00:06]

} exd4 {

[%clk 01:31:47]

} {

[%emt 00:00:15]

} 5. Nxd4 {

[%clk 01:31:52]

} {

[%emt 00:00:05]

} Bb4 {

[%clk 01:31:54]

} {

[%emt 00:00:24]

} 6. Nxc6 {

[%clk 01:32:13]

} {

[%emt 00:00:09]

} bxc6 {

[%clk 01:32:14]

} {

[%emt 00:00:09]

} 7. Bd3 {

[%clk 01:32:31]

} {

[%emt 00:00:13]

} d5 {

[%clk 01:31:20]

} {

[%emt 00:01:24]

} 8. exd5 {

[%clk 01:31:29]

} {

[%emt 00:01:33]

} cxd5 {

[%clk 01:31:42]

} {

[%emt 00:00:07]

} 9. O-O {

[%clk 01:31:50]

} {

[%emt 00:00:08]

} O-O {

[%clk 01:31:57]

} {

[%emt 00:00:14]

} 10. Bg5 {

[%clk 01:32:11]

} {

[%emt 00:00:09]

} c6 {

[%clk 01:31:36]

} {

[%emt 00:00:51]

} 11. Qf3 {

[%clk 01:32:13]

} {

[%emt 00:00:28]

} h6 {

[%clk 01:30:52]

} {

[%emt 00:01:15]

} 12. Bxf6 {

[%clk 01:32:36]

} {

[%emt 00:00:08]

} Qxf6 {

[%clk 01:31:15]

} {

[%emt 00:00:06]

} 13. Qxf6 {

[%clk 01:32:57]

} {

[%emt 00:00:09]

} gxf6 {

[%clk 01:31:40]

} {

[%emt 00:00:05]

} 14. Ne2 {

[%clk 01:33:15]

} {

[%emt 00:00:13]

} Bd6 {

[%clk 01:29:41]

} {

[%emt 00:02:30]

} 15. Nd4 {

[%clk 01:27:59]

} {

[%emt 00:05:45]

} c5 {

[%clk 01:28:44]

} {

[%emt 00:01:28]

} 16. Nf5 {

[%clk 01:28:15]

} {

[%emt 00:00:12]

} Be5 {

[%clk 01:26:29]

} {

[%emt 00:02:47]

} 17. Ne7+ {

[%clk 01:25:32]

} {

[%emt 00:03:13]

} Kg7 {

[%clk 01:26:37]

} {

[%emt 00:00:22]

} 18. Nxc8 {

[%clk 01:25:35]

} {

[%emt 00:00:28]

} Raxc8 {

[%clk 01:26:53]

} {

[%emt 00:00:13]

} 19. Rab1 {

[%clk 01:25:52]

} {

[%emt 00:00:13]

} c4 {

[%clk 01:24:28]

} {

[%emt 00:02:56]

} 20. Bf5 {

[%clk 01:26:13]

} {

[%emt 00:00:09]

} Rc5 {

[%clk 01:24:51]

} {

[%emt 00:00:07]

} 1/2-1/2